[Event "NOR-ch Various 2019"]
[Site "Larvik"]
[Date "2019.07.10"]
[Round "6.2"]
[White "Skogheim, Ole Morten"]
[Black "Smeby, Ole"]
[Result "0-1"]
[ECO "B01"]
[WhiteElo "1968"]
[BlackElo "1887"]
[Annotator "NA"]
[PlyCount "124"]
[EventDate "2019.07.06"]
[EventType "swiss"]
[EventCountry "NOR"]
[SourceTitle "playchess.com"]
[Source "ChessBase"]
[SourceQuality "1"]
[TimeControl "40/5400+30:1800+30"]

1. e4 {[%emt 0:00:00]} d5 {[%emt 0:00:00]} 2. exd5 {[%emt 0:00:00]} Qxd5 {[%emt 0:00:00]} 3. Nc3 {[%emt 0:00:00]} Qa5 {[%emt 0:00:00]} 4. d4 {[%emt 0:00:00]} Nf6 {[%emt 0:00:00]} 5. Bc4 {[%emt 0:01:57]} Bf5 {[%emt 0:00:12]} 6. Bd2 {[%emt 0:00:41]} c6 {[%emt 0:00:11]} 7. Nf3 {[%emt 0:01:12]} e6 {[%emt 0:00:14]} 8. Nd5 {[%emt 0:01:46]} Qd8 {[%emt 0:00:13]} 9. Nxf6+ {[%emt 0:00:08]} gxf6 {[%emt 0:00:45]} 10. c3 {[%emt 0:05:22]} Nd7 {[%emt 0:00:18]} 11. Qe2 {[%emt 0:01:53]} Nb6 {[%emt 0:01:12]} 12. Nh4 {[%emt 0:03:20]} Nxc4 {[%emt 0:02:23]} 13. Qxc4 {[%emt 0:01:00]} Bg6 {[%emt 0:00:09]} 14. Nxg6 {[%emt 0:01:44]} hxg6 {[%emt 0:00:07]} 15. O-O-O {[%emt 0:02:15]} Qd5 {[%emt 0:01:20]} 16. Qxd5 {[%emt 0:04:26]} cxd5 {[%emt 0:00:07]} 17. h3 {[%emt 0:01:19]} b5 {[%emt 0:03:11]} 18. Kc2 {[%emt 0:01:12]} Kd7 {[%emt 0:02:21]} 19. Rhe1 {[%emt 0:02:21]} Bd6 {[%emt 0:01:54]} 20. Re3 {[%emt 0:01:01]} Bf4 {[%emt 0:01:42]} 21. Rf3 {[%emt 0:00:05]} Bxd2 {[%emt 0:00:09]} 22. Kxd2 {[%emt 0:00:17]} f5 {[%emt 0:00:07]} 23. a4 {[%emt 0:05:17]} a6 {[%emt 0:00:21]} 24. a5 {[%emt 0:02:08]} Rac8 {[%emt 0:02:28]} 25. Re3 {[%emt 0:07:01]} Rh4 {[%emt 0:04:33]} 26. Kd3 {[%emt 0:09:37]} g5 {[%emt 0:07:58]} 27. f3 {[%emt 0:01:14]} Kd6 {[%emt 0:09:06]} 28. b3 {[%emt 0:02:08]} g4 {[%emt 0:04:15]} 29. fxg4 {[%emt 0:00:50]} fxg4 {[%emt 0:00:16]} 30. Rf1 {[%emt 0:03:42]} gxh3 {[%emt 0:00:35]} 31. Rxh3 {[%emt 0:06:27]} Rxh3+ {[%emt 0:00:28]} 32. gxh3 {[%emt 0:00:02]} Ke7 {[%emt 0:00:24]} 33. Rf3 {[%emt 0:02:06]} Rg8 {[%emt 0:00:52]} 34. h4 {[%emt 0:02:36]} f5 {[%emt 0:03:22]} 35. Rh3 {[%emt 0:02:26]} Kf6 {[%emt 0:00:26]} 36. Ke3 {[%emt 0:05:53]} Rg1 {[%emt 0:07:00]} 37. Kf2 {[%emt 0:04:25]} Rg4 {[%emt 0:03:32]} 38. Kf3 {[%emt 0:01:11]} Re4 {[%emt 0:05:32]} 39. h5 {[%emt 0:05:14]} Kg7 {[%emt 0:00:44]} 40. Rg3+ {[%emt 0:02:21]} Kh7 {[%emt 0:09:42]} 41. h6 {[%emt 0:32:26]} Kxh6 {[%emt 0:31:53]} 42. Rg8 {[%emt 0:00:06]} f4 {[%emt 0:09:05]} 43. Ra8 {[%emt 0:00:07]} Kg5 {[%emt 0:04:06]} 44. Rxa6 {[%emt 0:03:12]} Re3+ {[%emt 0:00:07]} 45. Kf2 {[%emt 0:00:08]} Rxc3 {[%emt 0:00:22]} 46. Rxe6 {[%emt 0:00:50]} Rxb3 {[%emt 0:00:16]} 47. Re5+ {[%emt 0:03:39]} Kg4 {[%emt 0:00:09]} 48. a6 {[%emt 0:05:02]} Rb2+ {[%emt 0:00:14]} 49. Re2 {[%emt 0:01:02]} Rb3 {[%emt 0:01:32]} 50. Ra2 {[%emt 0:00:56]} Rh3 {[%emt 0:00:21]} 51. Kg1 {[%emt 0:00:00]} Rh8 {[%emt 0:00:00]} 52. a7 {[%emt 0:00:00]} Ra8 {[%emt 0:00:00]} 53. Kf2 {[%emt 0:00:00]} b4 {[%emt 0:00:00]} 54. Ra4 {[%emt 0:00:00]} b3 {[%emt 0:00:00]} 55. Ra3 {[%emt 0:00:00]} b2 {[%emt 0:00:00]} 56. Rb3 {[%emt 0:00:00]} Rxa7 {[%emt 0:00:00]} 57. Rxb2 {[%emt 0:00:00]} Ra4 {[%emt 0:00:00]} 58. Rd2 {[%emt 0:00:00]} Ra3 {[%emt 0:00:00]} 59. Re2 {[%emt 0:00:00]} Rd3 {[%emt 0:00:00]} 60. Re8 {[%emt 0:00:00]} Rd2+ {[%emt 0:00:00]} 61. Ke1 {[%emt 0:00:00]} Rxd4 {[%emt 0:00:00]} 62. Ke2 {[%emt 0:00:00]} Re4+ {[%emt 0:00:00]} 0-1

[Event "NOR-ch Various 2019"]
[Site "Larvik"]
[Date "2019.07.10"]
[Round "6.3"]
[White "Kristiansen, Oddvar"]
[Black "Kyrkjebo, Eirik"]
[Result "0-1"]
[ECO "C45"]
[WhiteElo "1479"]
[BlackElo "1598"]
[Annotator "NA"]
[PlyCount "46"]
[EventDate "2019.07.06"]
[EventType "swiss"]
[EventCountry "NOR"]
[SourceTitle "playchess.com"]
[Source "ChessBase"]
[SourceQuality "1"]
[TimeControl "40/5400+30:1800+30"]

1. e4 {[%emt 0:00:56]} e5 {[%emt 0:00:00]} 2. Nf3 {[%emt 0:00:11]} Nc6 {[%emt 0:00:00]} 3. d4 {[%emt 0:02:20]} exd4 {[%emt 0:00:48]} 4. Nxd4 {[%emt 0:00:06]} Qh4 {[%emt 0:00:47]} 5. Nxc6 {[%emt 0:07:49]} Qxe4+ {[%emt 0:00:35]} 6. Qe2 {[%emt 0:02:50]} Qxe2+ {[%emt 0:00:16]} 7. Bxe2 {[%emt 0:00:23]} dxc6 {[%emt 0:00:30]} 8. O-O {[%emt 0:01:25]} Bf5 {[%emt 0:01:27]} 9. Re1 {[%emt 0:05:09]} O-O-O {[%emt 0:01:17]} 10. Be3 {[%emt 0:06:54]} Bxc2 {[%emt 0:06:25]} 11. Nc3 {[%emt 0:02:59]} a6 {[%emt 0:04:37]} 12. Rac1 {[%emt 0:00:19]} Bg6 {[%emt 0:02:22]} 13. a3 {[%emt 0:07:10]} Nf6 {[%emt 0:05:33]} 14. Bf3 {[%emt 0:03:28]} Bd6 {[%emt 0:05:03]} 15. Red1 {[%emt 0:07:07]} Rhe8 {[%emt 0:04:36]} 16. Rd4 {[%emt 0:11:11]} Be5 {[%emt 0:10:02]} 17. Rxd8+ {[%emt 0:07:35]} Rxd8 {[%emt 0:00:03]} 18. h3 {[%emt 0:05:09]} Nd5 {[%emt 0:02:38]} 19. Nxd5 {[%emt 0:00:56]} cxd5 {[%emt 0:00:19]} 20. Rc5 {[%emt 0:08:56]} c6 {[%emt 0:04:45]} 21. b4 {[%emt 0:02:07]} f6 {[%emt 0:03:05]} 22. Be2 {[%emt 0:11:02]} d4 {[%emt 0:03:17]} 23. Bd2 {[%emt 0:02:12]} d3 {[%emt 0:02:34]} 0-1

[Event "NOR-ch Various 2019"]
[Site "Larvik"]
[Date "2019.07.10"]
[Round "6.4"]
[White "Teigen, Tore"]
[Black "Starli, Atle"]
[Result "1-0"]
[ECO "D94"]
[WhiteElo "1551"]
[BlackElo "1526"]
[Annotator "NA"]
[PlyCount "71"]
[EventDate "2019.07.06"]
[EventType "swiss"]
[EventCountry "NOR"]
[SourceTitle "playchess.com"]
[Source "ChessBase"]
[SourceQuality "1"]
[TimeControl "40/5400+30:1800+30"]

1. d4 {[%emt 0:00:00]} d5 {[%emt 0:00:00]} 2. c4 {[%emt 0:00:00]} c6 {[%emt 0:00:00]} 3. e3 {[%emt 0:00:00]} Nf6 {[%emt 0:00:00]} 4. Nc3 {[%emt 0:00:26]} g6 {[%emt 0:00:18]} 5. Nf3 {[%emt 0:01:40]} Bg7 {[%emt 0:00:32]} 6. Bd3 {[%emt 0:02:11]} O-O {[%emt 0:00:29]} 7. O-O {[%emt 0:00:36]} Bg4 {[%emt 0:02:00]} 8. h3 {[%emt 0:04:26]} Bxf3 {[%emt 0:03:58]} 9. Qxf3 {[%emt 0:00:24]} Re8 {[%emt 0:05:04]} 10. Rd1 {[%emt 0:05:30]} e5 {[%emt 0:00:53]} 11. dxe5 {[%emt 0:01:03]} Rxe5 {[%emt 0:00:15]} 12. Bf1 {[%emt 0:09:23]} Rf5 {[%emt 0:09:08]} 13. Qe2 {[%emt 0:05:24]} Qb6 {[%emt 0:05:15]} 14. Bd2 {[%emt 0:11:50]} Nbd7 {[%emt 0:01:09]} 15. b3 {[%emt 0:03:38]} Re8 {[%emt 0:02:41]} 16. Rac1 {[%emt 0:03:33]} d4 {[%emt 0:06:52]} 17. Na4 {[%emt 0:01:51]} Qc7 {[%emt 0:00:20]} 18. Qd3 {[%emt 0:04:24]} Ne4 {[%emt 0:06:53]} 19. Be1 {[%emt 0:04:21]} c5 {[%emt 0:02:09]} 20. f4 {[%emt 0:05:03]} g5 {[%emt 0:09:11]} 21. g4 {[%emt 0:03:32]} Rf6 {[%emt 0:02:00]} 22. Bg2 {[%emt 0:00:39]} Rfe6 {[%emt 0:05:51]} 23. Rc2 {[%emt 0:04:54]} gxf4 {[%emt 0:01:09]} 24. exf4 {[%emt 0:00:43]} Qxf4 {[%emt 0:01:55]} 25. Re2 {[%emt 0:05:28]} Ndf6 {[%emt 0:10:17]} 26. Bh4 {[%emt 0:01:56]} Nh5 {[%emt 0:05:48]} 27. Rf1 {[%emt 0:01:21]} Qe5 {[%emt 0:03:02]} 28. gxh5 {[%emt 0:02:48]} Bh6 {[%emt 0:03:09]} 29. Rxe4 {[%emt 0:01:05]} Qxh5 {[%emt 0:03:51]} 30. Qg3+ {[%emt 0:02:53]} Kf8 {[%emt 0:01:40]} 31. Rxe6 {[%emt 0:00:11]} Rxe6 {[%emt 0:01:08]} 32. Qg4 {[%emt 0:01:14]} Qe5 {[%emt 0:00:53]} 33. Qf5 {[%emt 0:00:45]} Be3+ {[%emt 0:02:02]} 34. Kh1 {[%emt 0:00:14]} Qg7 {[%emt 0:00:56]} 35. Nxc5 {[%emt 0:01:56]} Rc6 {[%emt 0:01:22]} 36. Bxc6 {[%emt 0:01:18]} 1-0

[Event "NOR-ch Various 2019"]
[Site "Larvik"]
[Date "2019.07.10"]
[Round "6.5"]
[White "Hoem, Audun"]
[Black "Vigdal, Per Kr"]
[Result "1/2-1/2"]
[ECO "A36"]
[WhiteElo "1807"]
[BlackElo "1926"]
[Annotator "NA"]
[PlyCount "34"]
[EventDate "2019.07.06"]
[EventType "swiss"]
[EventCountry "NOR"]
[SourceTitle "playchess.com"]
[Source "ChessBase"]
[SourceQuality "1"]
[TimeControl "40/5400+30:1800+30"]

1. c4 {[%emt 0:00:00]} Nf6 {[%emt 0:00:00]} 2. g3 {[%emt 0:00:00]} c5 {[%emt 0:02:07]} 3. Bg2 {[%emt 0:00:04]} Nc6 {[%emt 0:00:31]} 4. Nc3 {[%emt 0:00:14]} d6 {[%emt 0:03:44]} 5. Rb1 {[%emt 0:00:24]} e5 {[%emt 0:02:50]} 6. Nf3 {[%emt 0:05:14]} Be7 {[%emt 0:00:35]} 7. a3 {[%emt 0:01:52]} O-O {[%emt 0:00:49]} 8. O-O {[%emt 0:00:38]} Bf5 {[%emt 0:04:38]} 9. d3 {[%emt 0:00:34]} h6 {[%emt 0:00:54]} 10. b4 {[%emt 0:02:25]} Qd7 {[%emt 0:08:16]} 11. bxc5 {[%emt 0:08:40]} dxc5 {[%emt 0:00:47]} 12. Nd5 {[%emt 0:01:12]} Rab8 {[%emt 0:13:07]} 13. Bb2 {[%emt 0:05:03]} Qd6 {[%emt 0:02:09]} 14. Re1 {[%emt 0:04:58]} Rfe8 {[%emt 0:01:31]} 15. Bc3 {[%emt 0:04:48]} Bd8 {[%emt 0:05:59]} 16. Ne3 {[%emt 0:08:12]} Bh7 {[%emt 0:06:29]} 17. Qa4 {[%emt 0:02:42]} Bb6 {[%emt 0:24:23]} 1/2-1/2

[Event "NOR-ch Various 2019"]
[Site "Larvik"]
[Date "2019.07.10"]
[Round "6.6"]
[White "Sorensen, Simen"]
[Black "Aasen, Kjetil Myrlid"]
[Result "1-0"]
[ECO "A73"]
[WhiteElo "1979"]
[BlackElo "1882"]
[Annotator "NA"]
[PlyCount "85"]
[EventDate "2019.07.06"]
[EventType "swiss"]
[EventCountry "NOR"]
[SourceTitle "playchess.com"]
[Source "ChessBase"]
[SourceQuality "1"]
[TimeControl "40/5400+30:1800+30"]

1. d4 {[%emt 0:00:00]} Nf6 {[%emt 0:00:00]} 2. c4 {[%emt 0:00:00]} c5 {[%emt 0:00:13]} 3. d5 {[%emt 0:00:43]} e6 {[%emt 0:00:42]} 4. Nc3 {[%emt 0:00:38]} exd5 {[%emt 0:00:09]} 5. cxd5 {[%emt 0:00:21]} d6 {[%emt 0:00:11]} 6. e4 {[%emt 0:01:54]} g6 {[%emt 0:01:05]} 7. Be2 {[%emt 0:04:28]} Bg7 {[%emt 0:01:38]} 8. Nf3 {[%emt 0:04:02]} Bg4 {[%emt 0:06:49]} 9. O-O {[%emt 0:02:24]} Bxf3 {[%emt 0:02:47]} 10. Bxf3 {[%emt 0:00:29]} O-O {[%emt 0:00:38]} 11. Bf4 {[%emt 0:08:47]} Ne8 {[%emt 0:06:50]} 12. Qc2 {[%emt 0:07:50]} a6 {[%emt 0:01:46]} 13. a4 {[%emt 0:00:21]} Nd7 {[%emt 0:01:52]} 14. Be2 {[%emt 0:05:01]} Rb8 {[%emt 0:15:34]} 15. Bg3 {[%emt 0:06:24]} Qe7 {[%emt 0:12:56]} 16. f4 {[%emt 0:03:58]} Nc7 {[%emt 0:05:09]} 17. Rfd1 {[%emt 0:05:49]} Bd4+ {[%emt 0:15:24]} 18. Kh1 {[%emt 0:03:30]} b5 {[%emt 0:03:03]} 19. axb5 {[%emt 0:03:01]} axb5 {[%emt 0:00:05]} 20. Ra7 {[%emt 0:03:53]} Rfc8 {[%emt 0:01:43]} 21. Bg4 {[%emt 0:03:00]} h5 {[%emt 0:06:12]} 22. Bxd7 {[%emt 0:06:39]} Qxd7 {[%emt 0:00:03]} 23. Ne2 {[%emt 0:00:40]} Bg7 {[%emt 0:02:12]} 24. e5 {[%emt 0:01:42]} Ra8 {[%emt 0:04:08]} 25. Rxa8 {[%emt 0:07:01]} Nxa8 {[%emt 0:00:06]} 26. Nc3 {[%emt 0:02:49]} h4 {[%emt 0:02:52]} 27. Bxh4 {[%emt 0:03:48]} dxe5 {[%emt 0:00:01]} 28. fxe5 {[%emt 0:01:14]} Bxe5 {[%emt 0:00:01]} 29. Ne4 {[%emt 0:01:02]} f6 {[%emt 0:08:21]} 30. Nxf6+ {[%emt 0:02:01]} Bxf6 {[%emt 0:00:01]} 31. Bxf6 {[%emt 0:00:11]} Qf5 {[%emt 0:01:25]} 32. Qxf5 {[%emt 0:00:36]} gxf5 {[%emt 0:00:01]} 33. d6 {[%emt 0:00:13]} Nb6 {[%emt 0:01:20]} 34. d7 {[%emt 0:00:09]} Nxd7 {[%emt 0:00:16]} 35. Rxd7 {[%emt 0:00:06]} b4 {[%emt 0:01:12]} 36. h4 {[%emt 0:01:22]} Rc6 {[%emt 0:00:31]} 37. Be7 {[%emt 0:01:04]} b3 {[%emt 0:00:32]} 38. Rd5 {[%emt 0:01:25]} Kf7 {[%emt 0:00:01]} 39. Rxc5 {[%emt 0:00:59]} Re6 {[%emt 0:00:31]} 40. Bg5 {[%emt 0:00:11]} Re2 {[%emt 0:00:22]} 41. h5 {[%emt 0:31:29]} Rxb2 {[%emt 0:30:29]} 42. Rc7+ {[%emt 0:00:42]} Kg8 {[%emt 0:00:00]} 43. h6 {[%emt 0:00:00]} 1-0

[Event "NOR-ch Various 2019"]
[Site "Larvik"]
[Date "2019.07.10"]
[Round "6.7"]
[White "Oldernes, Lars-Arne"]
[Black "Grondahl, David A"]
[Result "0-1"]
[ECO "E70"]
[WhiteElo "1684"]
[BlackElo "1730"]
[Annotator "NA"]
[PlyCount "74"]
[EventDate "2019.07.06"]
[EventType "swiss"]
[EventCountry "NOR"]
[SourceTitle "playchess.com"]
[Source "ChessBase"]
[SourceQuality "1"]
[TimeControl "40/5400+30:1800+30"]

1. d4 {[%emt 0:03:07]} Nf6 {[%emt 0:00:00]} 2. c4 {[%emt 0:00:42]} g6 {[%emt 0:00:00]} 3. Nc3 {[%emt 0:00:18]} Bg7 {[%emt 0:00:08]} 4. e4 {[%emt 0:00:13]} d6 {[%emt 0:00:05]} 5. Bg5 {[%emt 0:01:24]} O-O {[%emt 0:00:27]} 6. Qd2 {[%emt 0:04:12]} c5 {[%emt 0:00:10]} 7. d5 {[%emt 0:00:14]} e6 {[%emt 0:00:04]} 8. dxe6 {[%emt 0:05:13]} Bxe6 {[%emt 0:00:28]} 9. O-O-O {[%emt 0:05:00]} Nc6 {[%emt 0:02:12]} 10. Qxd6 {[%emt 0:16:39]} Qa5 {[%emt 0:00:10]} 11. Qf4 {[%emt 0:00:47]} Ng4 {[%emt 0:09:46]} 12. h3 {[%emt 0:12:12]} Be5 {[%emt 0:03:21]} 13. Qd2 {[%emt 0:06:32]} Nf6 {[%emt 0:01:27]} 14. Bxf6 {[%emt 0:04:45]} Bxf6 {[%emt 0:00:09]} 15. Nd5 {[%emt 0:00:07]} Qxd2+ {[%emt 0:04:35]} 16. Rxd2 {[%emt 0:00:22]} Bg7 {[%emt 0:04:05]} 17. f4 {[%emt 0:02:05]} Rad8 {[%emt 0:08:52]} 18. Nf3 {[%emt 0:02:24]} Nd4 {[%emt 0:01:29]} 19. Rd3 {[%emt 0:06:34]} b5 {[%emt 0:04:42]} 20. Nxd4 {[%emt 0:01:47]} Bxd4 {[%emt 0:02:56]} 21. b3 {[%emt 0:03:48]} Kg7 {[%emt 0:03:41]} 22. cxb5 {[%emt 0:02:39]} Bxd5 {[%emt 0:00:31]} 23. exd5 {[%emt 0:00:05]} Rxd5 {[%emt 0:00:16]} 24. Kc2 {[%emt 0:02:02]} Re8 {[%emt 0:00:26]} 25. g4 {[%emt 0:00:29]} Rd6 {[%emt 0:07:45]} 26. Bg2 {[%emt 0:01:36]} Rde6 {[%emt 0:00:44]} 27. Bc6 {[%emt 0:01:54]} Re2+ {[%emt 0:00:40]} 28. Rd2 {[%emt 0:00:17]} R8e3 {[%emt 0:00:08]} 29. Rh2 {[%emt 0:01:00]} Re1 {[%emt 0:00:42]} 30. Rd1 {[%emt 0:01:12]} Rc3+ {[%emt 0:00:55]} 31. Kd2 {[%emt 0:00:10]} Ree3 {[%emt 0:00:06]} 32. Rdh1 {[%emt 0:05:42]} c4 {[%emt 0:05:14]} 33. Bd5 {[%emt 0:02:15]} Red3+ {[%emt 0:00:16]} 34. Ke1 {[%emt 0:01:09]} Rc1+ {[%emt 0:00:14]} 35. Ke2 {[%emt 0:00:09]} Rc2+ {[%emt 0:00:05]} 36. Ke1 {[%emt 0:00:10]} Bc3+ {[%emt 0:00:05]} 37. Kf1 {[%emt 0:00:06]} Rd1# {[%emt 0:00:02]} 0-1

[Event "NOR-ch Various 2019"]
[Site "Larvik"]
[Date "2019.07.10"]
[Round "6.8"]
[White "Odegaard, Per Chr"]
[Black "Skrede, Per Arne"]
[Result "0-1"]
[ECO "C50"]
[WhiteElo "1754"]
[BlackElo "1696"]
[Annotator "NA"]
[PlyCount "94"]
[EventDate "2019.07.06"]
[EventType "swiss"]
[EventCountry "NOR"]
[SourceTitle "playchess.com"]
[Source "ChessBase"]
[SourceQuality "1"]
[TimeControl "40/5400+30:1800+30"]

1. e4 {[%emt 0:07:57]} e5 {[%emt 0:00:00]} 2. Nf3 {[%emt 0:01:09]} Nc6 {[%emt 0:00:00]} 3. Bc4 {[%emt 0:01:33]} Nf6 {[%emt 0:00:00]} 4. d3 {[%emt 0:06:01]} Bc5 {[%emt 0:00:13]} 5. O-O {[%emt 0:01:57]} h6 {[%emt 0:02:30]} 6. a3 {[%emt 0:05:16]} d6 {[%emt 0:02:12]} 7. h3 {[%emt 0:01:18]} O-O {[%emt 0:02:26]} 8. Nc3 {[%emt 0:01:23]} a5 {[%emt 0:02:34]} 9. Na4 {[%emt 0:02:27]} Ba7 {[%emt 0:01:28]} 10. Be3 {[%emt 0:01:24]} Bd7 {[%emt 0:04:49]} 11. Bxa7 {[%emt 0:02:50]} Nxa7 {[%emt 0:01:22]} 12. Nc3 {[%emt 0:00:35]} b5 {[%emt 0:01:59]} 13. Ba2 {[%emt 0:01:10]} Rb8 {[%emt 0:06:52]} 14. Qd2 {[%emt 0:05:00]} c6 {[%emt 0:04:59]} 15. Ne2 {[%emt 0:02:52]} Qc7 {[%emt 0:06:57]} 16. Ng3 {[%emt 0:03:58]} d5 {[%emt 0:05:51]} 17. c3 {[%emt 0:02:54]} Rbd8 {[%emt 0:03:09]} 18. Qe3 {[%emt 0:02:57]} Rfe8 {[%emt 0:04:55]} 19. Nh4 {[%emt 0:01:54]} Nc8 {[%emt 0:03:24]} 20. Nhf5 {[%emt 0:04:57]} Ne7 {[%emt 0:06:04]} 21. Nxh6+ {[%emt 0:02:53]} gxh6 {[%emt 0:11:08]} 22. Qxh6 {[%emt 0:00:30]} Ng6 {[%emt 0:04:18]} 23. Nf5 {[%emt 0:01:02]} Bxf5 {[%emt 0:01:53]} 24. exf5 {[%emt 0:00:08]} Nf4 {[%emt 0:05:30]} 25. Qxf6 {[%emt 0:01:54]} Rd6 {[%emt 0:13:01]} 26. Qg5+ {[%emt 0:00:42]} Kh7 {[%emt 0:00:30]} 27. f6 {[%emt 0:02:49]} Nxh3+ {[%emt 0:00:51]} 28. gxh3 {[%emt 0:02:01]} Rg8 {[%emt 0:00:06]} 29. Qxg8+ {[%emt 0:00:58]} Kxg8 {[%emt 0:00:06]} 30. c4 {[%emt 0:02:28]} Qd8 {[%emt 0:01:57]} 31. f4 {[%emt 0:02:49]} Qxf6 {[%emt 0:00:25]} 32. fxe5 {[%emt 0:00:51]} Qxe5 {[%emt 0:00:14]} 33. Rf2 {[%emt 0:00:28]} Qe3 {[%emt 0:00:51]} 34. Raf1 {[%emt 0:01:32]} Qxh3 {[%emt 0:00:32]} 35. Rg2+ {[%emt 0:00:29]} Kf8 {[%emt 0:01:05]} 36. cxd5 {[%emt 0:00:41]} cxd5 {[%emt 0:00:33]} 37. Bb1 {[%emt 0:00:51]} Qe3+ {[%emt 0:00:56]} 38. Rff2 {[%emt 0:00:21]} Rh6 {[%emt 0:01:04]} 39. Bc2 {[%emt 0:01:30]} Qc1+ {[%emt 0:00:58]} 40. Rf1 {[%emt 0:00:28]} Qxb2 {[%emt 0:00:18]} 41. Rf4 {[%emt 0:34:21]} Qc1+ {[%emt 0:31:05]} 42. Rf1 {[%emt 0:00:06]} Qxa3 {[%emt 0:01:16]} 43. d4 {[%emt 0:00:39]} Qe3+ {[%emt 0:00:00]} 44. Rff2 {[%emt 0:00:00]} Qxd4 {[%emt 0:00:00]} 45. Rg5 {[%emt 0:00:00]} Rh2 {[%emt 0:00:00]} 46. Rgg2 {[%emt 0:00:00]} Rxg2+ {[%emt 0:00:00]} 47. Kxg2 {[%emt 0:00:00]} a4 {[%emt 0:00:00]} 0-1

[Event "NOR-ch Various 2019"]
[Site "Larvik"]
[Date "2019.07.10"]
[Round "6.9"]
[White "Wullum, Robin"]
[Black "Hansen, Roy Drange"]
[Result "1-0"]
[ECO "B40"]
[WhiteElo "1452"]
[BlackElo "1515"]
[Annotator "NA"]
[PlyCount "83"]
[EventDate "2019.07.06"]
[EventType "swiss"]
[EventCountry "NOR"]
[SourceTitle "playchess.com"]
[Source "ChessBase"]
[SourceQuality "1"]
[TimeControl "40/5400+30:1800+30"]

1. e4 {[%emt 0:00:00]} c5 {[%emt 0:00:00]} 2. Nf3 {[%emt 0:00:00]} Nc6 {[%emt 0:00:00]} 3. Be2 {[%emt 0:00:16]} e6 {[%emt 0:00:07]} 4. O-O {[%emt 0:00:12]} Be7 {[%emt 0:00:05]} 5. Re1 {[%emt 0:00:08]} d6 {[%emt 0:00:34]} 6. Bf1 {[%emt 0:00:15]} Nf6 {[%emt 0:00:31]} 7. d3 {[%emt 0:00:24]} O-O {[%emt 0:00:42]} 8. Nbd2 {[%emt 0:00:08]} a6 {[%emt 0:01:18]} 9. a4 {[%emt 0:00:19]} b6 {[%emt 0:01:00]} 10. c3 {[%emt 0:02:38]} Bb7 {[%emt 0:02:45]} 11. d4 {[%emt 0:01:08]} d5 {[%emt 0:08:50]} 12. exd5 {[%emt 0:06:18]} exd5 {[%emt 0:01:53]} 13. Nb3 {[%emt 0:00:55]} c4 {[%emt 0:03:06]} 14. Nbd2 {[%emt 0:00:16]} Qc7 {[%emt 0:01:09]} 15. g3 {[%emt 0:00:22]} b5 {[%emt 0:02:22]} 16. Bg2 {[%emt 0:00:14]} b4 {[%emt 0:02:57]} 17. Ne5 {[%emt 0:00:43]} b3 {[%emt 0:01:02]} 18. Ndf3 {[%emt 0:00:36]} Ne4 {[%emt 0:05:07]} 19. Nxc6 {[%emt 0:00:29]} Bxc6 {[%emt 0:00:45]} 20. Ne5 {[%emt 0:00:11]} Bb7 {[%emt 0:00:16]} 21. Qe2 {[%emt 0:03:04]} Bd6 {[%emt 0:03:51]} 22. Bxe4 {[%emt 0:05:19]} dxe4 {[%emt 0:02:26]} 23. Nxc4 {[%emt 0:00:24]} Rae8 {[%emt 0:02:29]} 24. Be3 {[%emt 0:01:50]} f5 {[%emt 0:05:10]} 25. Nxd6 {[%emt 0:01:14]} Qxd6 {[%emt 0:00:13]} 26. Ra3 {[%emt 0:04:05]} Re6 {[%emt 0:31:19]} 27. Rxb3 {[%emt 0:02:58]} Ba8 {[%emt 0:04:26]} 28. Bf4 {[%emt 0:00:38]} Qd5 {[%emt 0:02:08]} 29. Rb4 {[%emt 0:01:30]} e3 {[%emt 0:03:39]} 30. f3 {[%emt 0:00:05]} g5 {[%emt 0:00:46]} 31. Bxg5 {[%emt 0:00:36]} f4 {[%emt 0:00:37]} 32. Qc4 {[%emt 0:07:53]} Qxc4 {[%emt 0:06:10]} 33. Rxc4 {[%emt 0:00:08]} fxg3 {[%emt 0:01:17]} 34. hxg3 {[%emt 0:01:09]} Bxf3 {[%emt 0:00:52]} 35. Rxe3 {[%emt 0:00:14]} Rg6 {[%emt 0:00:55]} 36. Rc5 {[%emt 0:01:13]} Bd1 {[%emt 0:02:35]} 37. a5 {[%emt 0:01:49]} Ba4 {[%emt 0:00:16]} 38. Bh4 {[%emt 0:00:00]} Rg4 {[%emt 0:02:13]} 39. Rg5+ {[%emt 0:00:00]} Rxg5 {[%emt 0:00:23]} 40. Bxg5 {[%emt 0:00:00]} Bb5 {[%emt 0:00:14]} 41. Bf4 {[%emt 0:30:15]} Kf7 {[%emt 0:00:35]} 42. b3 {[%emt 0:00:59]} 1-0

[Event "NOR-ch Various 2019"]
[Site "Larvik"]
[Date "2019.07.10"]
[Round "6.10"]
[White "Johansen, Aleksander"]
[Black "Roste, Stein"]
[Result "1-0"]
[ECO "D10"]
[WhiteElo "1518"]
[BlackElo "1321"]
[Annotator "NA"]
[PlyCount "69"]
[EventDate "2019.07.06"]
[EventType "swiss"]
[EventCountry "NOR"]
[SourceTitle "playchess.com"]
[Source "ChessBase"]
[SourceQuality "1"]
[TimeControl "40/5400+30:1800+30"]

1. d4 {[%emt 0:06:21]} d5 {[%emt 0:00:00]} 2. c4 {[%emt 0:00:18]} c6 {[%emt 0:00:16]} 3. cxd5 {[%emt 0:00:08]} cxd5 {[%emt 0:00:14]} 4. Nc3 {[%emt 0:00:02]} e6 {[%emt 0:03:44]} 5. Bf4 {[%emt 0:00:18]} Bd6 {[%emt 0:05:07]} 6. Bg3 {[%emt 0:00:17]} Nc6 {[%emt 0:04:59]} 7. e3 {[%emt 0:00:20]} Nge7 {[%emt 0:03:00]} 8. Bd3 {[%emt 0:04:14]} e5 {[%emt 0:09:35]} 9. dxe5 {[%emt 0:08:39]} Bxe5 {[%emt 0:02:40]} 10. Nf3 {[%emt 0:08:21]} Bxc3+ {[%emt 0:13:24]} 11. bxc3 {[%emt 0:00:11]} a6 {[%emt 0:04:14]} 12. a4 {[%emt 0:02:24]} O-O {[%emt 0:07:14]} 13. O-O {[%emt 0:04:25]} Bg4 {[%emt 0:02:14]} 14. Bxh7+ {[%emt 0:03:02]} Kh8 {[%emt 0:01:27]} 15. Bd3 {[%emt 0:00:30]} Nf5 {[%emt 0:01:11]} 16. Be2 {[%emt 0:13:05]} Nxg3 {[%emt 0:03:52]} 17. hxg3 {[%emt 0:00:23]} Qa5 {[%emt 0:01:53]} 18. Qc2 {[%emt 0:02:30]} g6 {[%emt 0:01:50]} 19. Rfd1 {[%emt 0:03:58]} Rac8 {[%emt 0:03:12]} 20. Qb2 {[%emt 0:00:56]} f6 {[%emt 0:09:31]} 21. Qxb7 {[%emt 0:16:40]} Qxc3 {[%emt 0:07:30]} 22. Rac1 {[%emt 0:02:53]} Qb4 {[%emt 0:00:22]} 23. Qxa6 {[%emt 0:05:20]} Qb2 {[%emt 0:02:24]} 24. Qb5 {[%emt 0:01:58]} Qxb5 {[%emt 0:01:25]} 25. Bxb5 {[%emt 0:01:43]} Ne7 {[%emt 0:01:01]} 26. Rxc8 {[%emt 0:02:05]} Rxc8 {[%emt 0:00:02]} 27. Rd2 {[%emt 0:00:53]} Rc1+ {[%emt 0:01:51]} 28. Kh2 {[%emt 0:01:05]} Be6 {[%emt 0:00:44]} 29. Nd4 {[%emt 0:01:03]} Bf7 {[%emt 0:00:15]} 30. g4 {[%emt 0:01:12]} Kg7 {[%emt 0:00:28]} 31. a5 {[%emt 0:00:43]} Nc8 {[%emt 0:01:07]} 32. Bc6 {[%emt 0:03:59]} Rc5 {[%emt 0:01:01]} 33. Bb7 {[%emt 0:02:22]} Na7 {[%emt 0:00:35]} 34. a6 {[%emt 0:00:41]} Be8 {[%emt 0:00:15]} 35. Ne6+ {[%emt 0:00:17]} 1-0